bitfinex/quotes_BTCUSD_20230118
["timestamp","ask_amount","ask_price","bid_price","bid_amount"]
[1674014724418,0.3700945,21265.0,21262.0,0.321907]
[1674014724899,0.3700945,21265.0,21261.0,0.470328]
[1674014724962,0.3700945,21265.0,21261.0,0.94065]
[1674014725225,0.3700945,21265.0,21262.0,0.321907]
[1674014725491,0.4420945,21265.0,21263.0,0.321907]
[1674014726011,0.5140945,21265.0,21261.0,0.472329]
[1674014726303,0.4420945,21265.0,21262.0,0.792218]
[1674014726574,0.5140945,21265.0,21262.0,0.002]
[1674014726830,0.3700945,21265.0,21263.0,0.321907]
[1674014727087,0.4420945,21265.0,21263.0,0.002]
[1674014727367,0.4420945,21265.0,21262.0,0.075]
[1674014727368,0.3700945,21265.0,21264.0,0.321907]
[1674014727632,0.4420945,21265.0,21264.0,0.321907]
[1674014728126,0.3700945,21265.0,21264.0,0.321907]
[1674014728382,0.38494776,21265.0,21264.0,0.321907]
[1674014728976,0.39994776,21265.0,21264.0,0.003]
[1674014729235,0.84020376,21265.0,21261.0,0.470327]
[1674014729501,0.85520376,21265.0,21264.0,0.003]
[1674014729749,0.85520376,21265.0,21260.0,0.544945]
[1674014729750,1.14020376,21265.0,21260.0,0.544945]
[1674014730007,1.61745976,21265.0,21264.0,0.01]
[1674014730277,1.76745976,21265.0,21264.0,0.01]
[1674014730542,1.76045976,21265.0,21260.0,0.470345]
[1674014730803,1.77545976,21265.0,21261.0,0.002]
[1674014731057,0.3,21264.0,21260.0,0.470345]
[1674014731348,0.470286,21264.0,21260.0,0.470345]
[1674014731619,0.470286,21264.0,21261.0,0.321907]
[1674014731884,0.470286,21264.0,21260.0,0.471345]
[1674014732143,0.470286,21264.0,21261.0,0.321907]
[1674014732406,0.470286,21264.0,21260.0,0.471345]
[1674014732868,0.470286,21264.0,21261.0,0.321907]
[1674014732899,0.84020376,21265.0,21261.0,0.321907]
[1674014733129,0.84020376,21265.0,21262.0,0.321907]
[1674014733130,0.47028,21264.0,21262.0,0.321907]
[1674014733411,0.55028,21264.0,21261.0,0.19172595]
[1674014733667,0.04075543,21263.0,21262.0,0.321907]
[1674014734199,0.04075543,21263.0,21260.0,0.001]
[1674014734468,0.04075543,21263.0,21262.0,0.001]
[1674014734723,0.04075543,21263.0,21261.0,0.321907]
[1674014734980,0.04075543,21263.0,21260.0,0.470365]
[1674014735238,0.04075543,21263.0,21261.0,0.792244]
[1674014735508,0.04075543,21263.0,21261.0,0.470337]
[1674014735764,0.05575543,21263.0,21262.0,0.321907]
[1674014736577,0.04075543,21263.0,21262.0,0.321907]
[1674014736828,0.04775543,21263.0,21262.0,0.331907]
[1674014737722,0.04075543,21263.0,21262.0,0.321907]
[1674014738013,0.05575543,21263.0,21262.0,0.323907]
[1674014738267,0.04075543,21263.0,21262.0,0.321907]
[1674014738521,0.04775543,21263.0,21262.0,0.331907]
[1674014744435,0.04775543,21263.0,21262.0,0.01]
[1674014746764,0.04775543,21263.0,21262.0,0.331907]
[1674014748859,0.51805543,21263.0,21262.0,0.331907]
[1674014749369,0.04775543,21263.0,21262.0,0.331907]
[1674014749614,0.1592329,21263.0,21262.0,0.331907]
[1674014750161,0.04775543,21263.0,21262.0,0.331907]
[1674014751754,0.1592329,21263.0,21262.0,0.331907]
[1674014752504,0.04775543,21263.0,21262.0,0.33180145]
[1674014754870,0.1592329,21263.0,21262.0,0.33180145]
[1674014755131,0.04775543,21263.0,21262.0,0.33180145]
[1674014755638,0.1592329,21263.0,21262.0,0.33180145]
[1674014759586,0.1592329,21263.0,21262.0,0.00989445]
[1674014760106,0.1592329,21263.0,21262.0,0.33180145]
[1674014760349,0.1592329,21263.0,21262.0,0.00989445]
[1674014760886,0.04775543,21263.0,21262.0,0.33180145]
[1674014765427,0.1592329,21263.0,21262.0,0.33180145]
[1674014765680,0.04775543,21263.0,21262.0,0.00989445]
[1674014766958,0.04775543,21263.0,21262.0,0.33180145]
[1674014767988,0.1592329,21263.0,21262.0,0.33180145]
[1674014768248,0.04775543,21263.0,21262.0,0.33180145]
[1674014768503,0.1592329,21263.0,21262.0,0.33180145]
[1674014768749,0.04775543,21263.0,21262.0,0.33180145]
[1674014769003,0.1592329,21263.0,21262.0,0.33180145]
[1674014769258,0.04775543,21263.0,21262.0,0.33180145]
[1674014770556,0.1592329,21263.0,21262.0,0.33180145]
[1674014770784,0.04775543,21263.0,21262.0,0.33180145]
[1674014777168,0.1592329,21263.0,21262.0,0.33169718]
[1674014777670,0.04775543,21263.0,21262.0,0.33169718]
[1674014784024,0.04775543,21263.0,21262.0,0.44229718]
[1674014784556,0.04741014,21263.0,21262.0,0.44229718]
[1674014791092,0.04741014,21263.0,21262.0,0.55279718]
[1674014791858,0.04741014,21263.0,21262.0,1.13361918]
[1674014792112,0.04741014,21263.0,21262.0,0.55269718]
[1674014792364,0.04741014,21263.0,21262.0,1.02301918]
[1674014792626,0.04741014,21263.0,21262.0,0.55269718]
[1674014793940,0.04741014,21263.0,21262.0,0.44219718]
[1674014794497,0.04741014,21263.0,21262.0,0.44279747]
[1674014794753,0.04741014,21263.0,21262.0,0.44219718]
[1674014795718,0.04741014,21263.0,21262.0,0.33169718]
[1674014797567,0.51771014,21263.0,21262.0,0.33169718]
[1674014797823,0.73978761,21263.0,21262.0,0.00979018]
[1674014798081,1.51008761,21263.0,21262.0,0.00979018]
[1674014798365,1.67729921,21263.0,21262.0,0.00979018]
[1674014798629,1.67029921,21263.0,21257.0,0.6936729]
[1674014798950,0.5217025,21262.0,21257.0,0.1107]
[1674014799208,0.9407,21261.0,21257.0,0.1107]
[1674014799457,0.9407,21261.0,21258.0,0.321907]
[1674014799736,1.0525025,21261.0,21257.0,0.1107]
[1674014800286,0.9407,21261.0,21258.0,0.321907]
[1674014800537,1.0525025,21261.0,21257.0,0.1107]
[1674014800787,1.0665025,21261.0,21258.0,0.002]
[1674014801063,0.9407,21261.0,21257.0,0.1107]
[1674014801318,0.9547,21261.0,21257.0,0.1127]
[1674014801826,0.9547,21261.0,21258.0,0.321907]
[1674014802079,0.9547,21261.0,21257.0,0.1127]
[1674014802328,0.9547,21261.0,21257.0,0.002]
[1674014802577,0.9547,21261.0,21257.0,0.19272595]
[1674014802948,0.9547,21261.0,21258.0,0.321907]
[1674014803628,0.9547,21261.0,21259.0,0.321907]
[1674014803883,0.9547,21261.0,21257.0,0.002]
[1674014804140,0.9407,21261.0,21256.0,1.050574]
[1674014804418,0.9407,21261.0,21258.0,0.002]
[1674014804419,0.9547,21261.0,21258.0,0.002]
[1674014804933,0.9547,21261.0,21259.0,0.321907]
[1674014805201,0.014,21261.0,21260.0,0.321907]
[1674014805757,0.49605393,21262.0,21257.0,0.94083]
[1674014805981,0.014,21261.0,21258.0,0.321907]
[1674014806251,0.470353,21261.0,21257.0,0.66114395]
[1674014806502,0.014,21261.0,21260.0,0.002]
[1674014806781,0.96639093,21262.0,21257.0,0.470418]
[1674014807013,1.04739093,21262.0,21257.0,1.13255895]
[1674014807260,1.51771293,21262.0,21258.0,0.321907]
[1674014807548,0.014,21261.0,21259.0,0.321907]
[1674014807805,0.470349,21261.0,21257.0,0.470415]
[1674014808316,0.470349,21261.0,21258.0,0.32182759]
[1674014808568,0.470349,21261.0,21259.0,0.321921]
[1674014808821,0.470349,21261.0,21257.0,0.470415]
[1674014809072,0.470349,21261.0,21258.0,0.321921]
[1674014809374,0.470349,21261.0,21257.0,0.472415]
[1674014809586,0.484349,21261.0,21257.0,0.002]
[1674014810100,0.470349,21261.0,21258.0,0.321921]
[1674014810365,0.940693,21261.0,21257.0,0.001]
[1674014810708,1.021693,21261.0,21258.0,0.321921]
[1674014811122,1.021693,21261.0,21259.0,0.321921]
[1674014811368,1.021693,21261.0,21257.0,0.001]
[1674014811828,1.021693,21261.0,21258.0,0.321921]
[1674014812080,0.940693,21261.0,21258.0,0.321921]
[1674014812331,1.021693,21261.0,21259.0,0.321921]
[1674014812589,1.021693,21261.0,21258.0,0.001]
[1674014813587,0.940693,21261.0,21256.0,0.580137]
[1674014813848,1.021693,21261.0,21259.0,0.001]
[1674014814870,0.940693,21261.0,21256.0,0.77086295]
[1674014815122,0.940693,21261.0,21256.0,0.580137]
[1674014815383,0.940693,21261.0,21257.0,0.321921]
[1674014815726,0.940693,21261.0,21256.0,0.580137]
[1674014815727,0.940693,21261.0,21256.0,0.77086295]
[1674014815922,1.021693,21261.0,21257.0,0.321921]
[1674014816197,0.940693,21261.0,21256.0,0.580137]
[1674014816482,1.021693,21261.0,21257.0,0.322921]
[1674014816744,1.021693,21261.0,21257.0,0.001]
[1674014817005,0.46555512,21260.0,21257.0,0.001]
[1674014817264,0.940778,21259.0,21257.0,0.001]
[1674014818349,1.050678,21259.0,21254.0,0.4837255]
[1674014818570,0.5211,21258.0,21257.0,0.009]
[1674014818809,0.5212,21258.0,21257.0,0.009]
[1674014819074,1.783943,21258.0,21257.0,0.009]
[1674014819348,2.019153,21258.0,21254.0,0.0132445]
[1674014819652,0.1097,21255.0,21254.0,0.0222445]
[1674014819943,0.1097,21255.0,21254.0,0.0132445]
[1674014819944,0.431621,21255.0,21254.0,0.0132445]
[1674014820199,1.050654,21255.0,21254.0,0.0132445]
[1674014820451,1.041354,21255.0,21254.0,0.0132445]
[1674014821003,1.341354,21255.0,21254.0,0.0132445]
[1674014821293,1.576594,21255.0,21254.0,0.0142445]
[1674014821551,2.08421669,21255.0,21254.0,0.0132445]
[1674014821809,2.08421669,21255.0,21254.0,0.0142445]
[1674014821810,1.91005569,21255.0,21254.0,0.0142445]
[1674014822545,2.26707474,21255.0,21254.0,0.0142445]
[1674014822800,2.58899574,21255.0,21254.0,0.0142445]
[1674014823070,1.48137305,21255.0,21254.0,0.0142445]
[1674014823591,1.78137305,21255.0,21254.0,0.0142445]
[1674014824381,0.44001905,21255.0,21254.0,0.0142445]
[1674014825229,0.083,21255.0,21254.0,0.0142445]
[1674014825490,0.083,21255.0,21254.0,0.0042445]
[1674014825747,0.083,21255.0,21254.0,0.3261655]
[1674014826012,0.083,21255.0,21254.0,0.7966645]
[1674014826750,0.3673944,21258.0,21254.0,0.7956645]
[1674014827002,0.018,21255.0,21254.0,0.66746945]
[1674014827256,0.8378164,21258.0,21254.0,0.3251655]
[1674014827515,0.008,21255.0,21254.0,0.20897045]
[1674014827780,0.008,21255.0,21254.0,0.3401655]
[1674014828534,0.668411,21258.0,21254.0,0.3251655]
[1674014828834,1.33830311,21257.0,21254.0,0.0052445]
[1674014829094,0.15,21256.0,21254.0,0.0032445]
[1674014829341,0.582317,21255.0,21254.0,0.0182445]
[1674014829605,2.38716669,21255.0,21253.0,0.01313948]
[1674014829868,2.41887476,21255.0,21254.0,0.002]
[1674014830152,3.0571927,21255.0,21253.0,0.01313948]
[1674014830418,2.75736696,21255.0,21254.0,0.015]
[1674014830681,3.0577927,21255.0,21254.0,0.015]
[1674014830932,0.15,21254.0,21253.0,0.01313948]
[1674014831183,2.044019,21254.0,21253.0,0.01313948]
[1674014831979,2.044019,21254.0,21253.0,0.01413948]
[1674014832248,2.52122069,21254.0,21253.0,0.01313948]
[1674014832497,2.59922069,21254.0,21253.0,0.01413948]
[1674014833805,2.60772069,21254.0,21253.0,0.00413948]
[1674014834292,2.59922069,21254.0,21253.0,0.00413948]
[1674014835600,2.60772069,21254.0,21253.0,0.00413948]
[1674014836883,3.41178478,21254.0,21253.0,0.00413948]
[1674014837952,3.41168459,21254.0,21253.0,0.00413948]
[1674014838186,3.05815473,21254.0,21253.0,0.00413948]
[1674014838468,3.41165094,21254.0,21253.0,0.00413948]
[1674014838727,4.56911807,21254.0,21253.0,0.00413948]
[1674014838988,5.62345549,21254.0,21252.0,0.02601383]
[1674014839251,1.27185757,21253.0,21252.0,0.02601383]
[1674014839537,3.50819957,21253.0,21252.0,0.02601383]
[1674014839780,0.15,21252.0,21251.0,0.02413594]
[1674014840037,4.44591607,21252.0,21251.0,0.02413594]
[1674014840301,3.33831607,21252.0,21251.0,0.02413594]
[1674014840552,2.98651869,21252.0,21251.0,0.02413594]
[1674014840834,2.53000869,21252.0,21251.0,0.02413594]
[1674014841072,2.38000869,21252.0,21251.0,0.02413594]
[1674014842016,2.47100869,21252.0,21251.0,0.02413594]
[1674014842181,2.38000869,21252.0,21251.0,0.02413594]
[1674014842451,2.47100869,21252.0,21251.0,0.02413594]
[1674014842714,2.9510909,21252.0,21251.0,0.02413594]
[1674014842970,3.9678506,21252.0,21251.0,0.02413594]
[1674014843503,4.15136839,21252.0,21251.0,0.02413594]
[1674014843772,2.76509744,21252.0,21251.0,0.02413594]
[1674014844838,2.76717498,21252.0,21251.0,0.02413594]
[1674014845101,3.46929357,21252.0,21251.0,0.02413594]
[1674014846368,3.88654802,21252.0,21251.0,0.02413594]
[1674014846376,3.46929357,21252.0,21251.0,0.02413594]
[1674014847180,3.22729454,21252.0,21251.0,0.02413594]
[1674014848208,2.52729453,21252.0,21251.0,0.02413594]
[1674014848774,2.48026548,21252.0,21251.0,0.02413594]
[1674014849285,2.78026548,21252.0,21251.0,0.02413594]
[1674014850139,2.45834448,21252.0,21251.0,0.02413594]
[1674014850393,2.78026548,21252.0,21251.0,0.02413594]
[1674014850906,2.40923789,21252.0,21251.0,0.02413594]
[1674014851155,2.73115889,21252.0,21251.0,0.02413594]
[1674014851422,2.40923789,21252.0,21251.0,0.02413594]
[1674014851660,2.73115889,21252.0,21251.0,0.02413594]
[1674014852175,3.12190598,21252.0,21251.0,0.02413594]
[1674014852454,2.79998498,21252.0,21251.0,0.02413594]
[1674014852699,2.73115889,21252.0,21251.0,0.02413594]
[1674014852922,2.40923789,21252.0,21251.0,0.02413594]
[1674014853176,2.73115889,21252.0,21251.0,0.02413594]
[1674014854463,2.78026548,21252.0,21251.0,0.02413594]
[1674014856868,2.40923789,21252.0,21251.0,0.02413594]
[1674014857369,2.84694995,21252.0,21251.0,0.02413594]
[1674014857708,2.52502895,21252.0,21251.0,0.02413594]
[1674014857883,2.95822092,21252.0,21251.0,0.02413594]
[1674014858126,3.00732751,21252.0,21251.0,0.02413594]
[1674014858392,3.35938987,21252.0,21251.0,0.02413594]
[1674014858640,3.17453911,21252.0,21251.0,0.02413594]
[1674014858897,3.32075166,21252.0,21251.0,0.02413594]
[1674014859148,3.17464559,21252.0,21251.0,0.02413594]
[1674014859392,3.70209697,21252.0,21251.0,0.02413594]
[1674014859644,4.15195848,21252.0,21251.0,0.02413594]
[1674014859894,3.67151193,21252.0,21251.0,0.02413594]
[1674014860157,4.15180083,21252.0,21251.0,0.02413594]
[1674014860428,4.68472926,21252.0,21251.0,0.02413594]
[1674014860677,4.7121417,21252.0,21251.0,0.02413594]
[1674014860918,4.85181794,21252.0,21251.0,0.02413594]
[1674014861176,3.90367607,21252.0,21251.0,0.02413594]
[1674014861486,3.56178875,21252.0,21251.0,0.02413594]
[1674014862184,3.72887743,21252.0,21251.0,0.02413594]
[1674014862433,3.72887743,21252.0,21251.0,0.0240187]
[1674014862732,3.56178875,21252.0,21251.0,0.0240187]
[1674014863456,3.72887743,21252.0,21251.0,0.0240187]
[1674014863973,3.40988875,21252.0,21251.0,0.0240187]
[1674014864236,3.40988875,21252.0,21245.0,0.4277597]
[1674014864237,3.29848739,21252.0,21245.0,0.4277597]
[1674014864476,3.29848739,21252.0,21245.0,0.26612595]
[1674014864477,0.78570169,21251.0,21245.0,0.26612595]
[1674014864732,1.88900769,21250.0,21245.0,0.0754]
[1674014864996,0.47720169,21249.0,21245.0,0.0754]
[1674014865308,0.470636,21248.0,21245.0,0.0754]
[1674014865537,0.470636,21248.0,21246.0,0.321921]
[1674014865802,0.470636,21248.0,21245.0,0.0754]
[1674014866050,0.470636,21248.0,21246.0,0.321921]
[1674014866313,0.470636,21248.0,21245.0,0.0754]
[1674014866563,0.470636,21248.0,21246.0,0.321921]
[1674014866834,0.561636,21248.0,21245.0,0.0754]
[1674014867093,0.470636,21248.0,21246.0,0.321921]
[1674014867338,1.31215176,21249.0,21245.0,0.0754]
[1674014867586,0.084,21248.0,21246.0,0.321921]
[1674014867839,0.084,21248.0,21245.0,0.26612595]
[1674014868114,0.084,21248.0,21246.0,0.321921]
[1674014868382,1.31215276,21249.0,21245.0,0.0754]
[1674014868642,0.084,21248.0,21246.0,0.321921]
[1674014868896,0.470639,21248.0,21247.0,0.321921]
[1674014869176,0.554639,21248.0,21247.0,0.321921]
[1674014869426,0.554639,21248.0,21245.0,0.0754]
[1674014869932,0.470639,21248.0,21246.0,0.321921]
[1674014870179,0.554639,21248.0,21245.0,0.0754]
[1674014870428,0.554639,21248.0,21246.0,0.321921]
[1674014870429,0.470639,21248.0,21246.0,0.321921]
[1674014870684,0.470639,21248.0,21245.0,0.0754]
[1674014870965,0.470639,21248.0,21246.0,0.321921]
[1674014871211,0.470639,21248.0,21245.0,0.0754]
[1674014871473,0.554639,21248.0,21245.0,0.0754]
[1674014871728,0.9690743,21247.0,21244.0,0.09875862]
[1674014872015,0.470676,21246.0,21244.0,0.02335862]
[1674014873574,0.554676,21246.0,21245.0,0.321921]
[1674014874397,0.470676,21246.0,21244.0,0.02335862]
[1674014874621,0.470676,21246.0,21245.0,0.321921]
[1674014874883,0.554676,21246.0,21245.0,0.321921]
[1674014875147,0.470676,21246.0,21244.0,0.02335862]
[1674014875401,0.480676,21246.0,21244.0,0.02335862]
[1674014875654,0.480676,21246.0,21245.0,0.321921]
[1674014875655,0.470676,21246.0,21245.0,0.321921]
[1674014875921,0.554676,21246.0,21245.0,0.321921]
[1674014876173,0.470676,21246.0,21244.0,0.02335862]
[1674014876702,0.9044173,21247.0,21245.0,0.321921]
[1674014877235,0.9044173,21247.0,21244.0,0.02335862]
[1674014877236,0.01,21246.0,21244.0,0.02335862]
[1674014877479,0.01,21246.0,21245.0,0.396821]
[1674014877733,0.9044173,21247.0,21245.0,0.396821]
[1674014877999,0.4337443,21247.0,21246.0,0.321921]
[1674014878518,0.084,21247.0,21246.0,0.321921]
[1674014879024,0.554654,21247.0,21246.0,0.321921]
[1674014879298,0.470654,21247.0,21246.0,0.321921]
[1674014879825,0.470639,21248.0,21246.0,0.321921]
[1674014880068,0.084,21247.0,21245.0,0.0749]
[1674014880333,0.084,21247.0,21246.0,0.321921]
[1674014880585,0.0891,21247.0,21246.0,0.321921]
[1674014880942,0.0051,21247.0,21246.0,0.58804695]
[1674014881097,0.0891,21247.0,21246.0,0.472721]
[1674014881355,0.0891,21247.0,21246.0,1.5266319]
[1674014881356,0.0051,21247.0,21246.0,1.5266319]
[1674014881626,0.0891,21247.0,21246.0,1.414073]
[1674014881885,0.0051,21247.0,21246.0,1.414073]
[1674014882112,0.0151,21247.0,21246.0,1.5266319]
[1674014882627,0.0151,21247.0,21246.0,1.414073]
[1674014882882,0.0051,21247.0,21246.0,1.414073]
[1674014883132,0.0141,21247.0,21246.0,1.414073]
[1674014883421,0.0051,21247.0,21246.0,1.414073]
[1674014883660,0.0151,21247.0,21246.0,1.414073]
[1674014884455,0.0051,21247.0,21246.0,0.943397]
[1674014884733,0.0151,21247.0,21246.0,0.943397]
[1674014884999,0.0051,21247.0,21246.0,0.867997]
[1674014885501,0.0051,21247.0,21246.0,0.397321]
[1674014886591,0.0131,21247.0,21246.0,0.397321]
[1674014888148,0.01303676,21247.0,21246.0,0.397321]
[1674014888748,0.01303676,21247.0,21246.0,1.338673]
[1674014888919,0.01303676,21247.0,21246.0,1.414073]
[1674014891733,0.00803676,21247.0,21246.0,1.414073]
[1674014893865,0.00803676,21247.0,21246.0,0.472721]
[1674014894846,0.00803676,21247.0,21246.0,0.321921]
[1674014895912,3.676e-05,21247.0,21246.0,0.321921]
[1674014896164,0.01003676,21247.0,21246.0,0.321921]
[1674014896490,3.676e-05,21247.0,21246.0,0.321921]
[1674014896719,0.00803676,21247.0,21246.0,0.321921]
[1674014900478,3.676e-05,21247.0,21246.0,0.321921]
[1674014900704,0.01003676,21247.0,21246.0,0.321921]
[1674014901744,0.9894883,21247.0,21244.0,0.02335862]
[1674014902002,1.4601423,21247.0,21244.0,0.02335862]
[1674014902256,1.4581423,21247.0,21245.0,0.321921]
[1674014902521,1.4501423,21247.0,21245.0,0.321921]
[1674014902802,1.0634883,21247.0,21244.0,0.02335862]
[1674014903078,0.9794883,21247.0,21245.0,0.321921]
[1674014903334,1.0634883,21247.0,21245.0,0.321921]
[1674014903580,0.9794883,21247.0,21244.0,0.02335862]
[1674014903826,1.4501423,21247.0,21244.0,0.02335862]
[1674014904594,1.5341423,21247.0,21244.0,0.02335862]
[1674014904862,1.4501423,21247.0,21244.0,0.02335862]
[1674014905118,1.5411423,21247.0,21244.0,0.02335862]
[1674014905369,1.4501423,21247.0,21244.0,0.02335862]
[1674014905639,1.5411423,21247.0,21242.0,0.2936667]
[1674014905881,1.5411423,21247.0,21241.0,0.470768]
[1674014906137,1.88654492,21247.0,21242.0,0.321921]
[1674014906402,1.5411423,21247.0,21242.0,0.19072595]
[1674014906693,1.88647911,21247.0,21243.0,0.321921]
[1674014906934,1.5411423,21247.0,21242.0,0.66148395]
[1674014907177,1.5411423,21247.0,21243.0,0.321921]
[1674014907440,0.3,21246.0,21241.0,0.47077]
[1674014907710,1.241376,21246.0,21241.0,0.47077]
[1674014907998,0.47448442,21245.0,21242.0,0.321921]
[1674014908281,0.94518742,21245.0,21241.0,0.66149595]
[1674014908534,0.94518742,21245.0,21242.0,0.321921]
[1674014908797,0.94518742,21245.0,21241.0,0.47077]
[1674014909058,0.95518742,21245.0,21242.0,0.321921]
[1674014909355,1.42588542,21245.0,21239.0,0.6922709]
[1674014909620,0.47720169,21244.0,21239.0,0.22472595]
[1674014909881,0.470746,21243.0,21239.0,0.034]
[1674014910175,0.470726,21244.0,21239.0,0.975655]
[1674014910440,0.941463,21244.0,21240.0,0.321921]
[1674014910698,0.39284418,21243.0,21239.0,0.69554995]
[1674014910985,0.86359018,21243.0,21239.0,0.504824]
[1674014911242,0.86359018,21243.0,21240.0,0.321921]
[1674014911499,1.33433318,21243.0,21241.0,0.321921]
[1674014911756,1.33433318,21243.0,21239.0,0.034]
[1674014912191,1.41833318,21243.0,21239.0,0.034]
[1674014912448,1.41833318,21243.0,21240.0,0.321921]
[1674014912725,0.47684418,21243.0,21240.0,0.51264695]
[1674014913001,0.47684418,21243.0,21240.0,0.470809]
[1674014913302,0.39284418,21243.0,21241.0,0.321921]
[1674014913536,0.47684418,21243.0,21240.0,0.470809]
[1674014913796,0.47684418,21243.0,21241.0,0.321921]
[1674014914061,0.39284418,21243.0,21240.0,0.941604]
[1674014914320,0.40284418,21243.0,21241.0,0.321921]
[1674014914608,0.01,21243.0,21241.0,0.470781]
[1674014914908,0.01,21243.0,21242.0,0.321921]
[1674014915171,0.01,21243.0,21242.0,0.792686]
[1674014915431,0.01,21243.0,21242.0,0.321921]
[1674014915981,0.37326076,21244.0,21242.0,0.321921]
[1674014916240,0.01,21243.0,21240.0,0.470788]
[1674014916494,0.0283371,21243.0,21241.0,0.321921]
[1674014916761,0.0283371,21243.0,21240.0,0.470788]
[1674014916762,0.0383371,21243.0,21240.0,0.470788]
[1674014917027,0.0283371,21243.0,21241.0,0.321921]
[1674014917280,0.0283371,21243.0,21240.0,0.941582]
[1674014917555,0.0283371,21243.0,21241.0,0.321921]
[1674014917856,0.0283371,21243.0,21241.0,0.470785]
[1674014918118,0.0283371,21243.0,21242.0,0.321921]
[1674014918928,0.0383371,21243.0,21242.0,0.321921]
[1674014919212,0.0283371,21243.0,21242.0,0.321921]
[1674014919478,0.0383371,21243.0,21242.0,0.321921]
[1674014922618,0.0383371,21243.0,21242.0,0.792686]
[1674014923672,0.0363371,21243.0,21242.0,0.792686]
[1674014925301,0.0363371,21243.0,21242.0,1.263451]
[1674014927171,0.0313371,21243.0,21242.0,1.263451]
[1674014927677,0.0313371,21243.0,21242.0,1.52887695]
[1674014928158,1e-08,21243.0,21242.0,1.75935044]
[1674014928414,1e-08,21243.0,21242.0,2.58069192]
[1674014928677,1e-08,21243.0,21242.0,1.87190934]
[1674014929203,3.676e-05,21247.0,21242.0,1.87190934]
[1674014929472,3.676e-05,21247.0,21245.0,0.0748]
[1674014929739,0.4889781,21250.0,21246.0,0.470676]
[1674014929993,0.4889781,21250.0,21247.0,0.51264695]
[1674014930250,0.03000001,21248.0,21247.0,0.19072595]
[1674014930538,0.03000001,21248.0,21246.0,0.326976]
[1674014930822,0.03000001,21248.0,21247.0,0.321921]
[1674014931332,0.05300001,21248.0,21247.0,0.323921]
[1674014933232,0.05300001,21248.0,21247.0,1.340629]
[1674014934313,0.05300001,21248.0,21247.0,1.34658728]
[1674014934880,0.05300001,21248.0,21247.0,1.42128728]
[1674014935419,0.05300001,21248.0,21247.0,1.57128728]
[1674014935673,0.03000001,21248.0,21247.0,1.56928728]
[1674014936156,0.03200001,21248.0,21247.0,1.41658728]
[1674014936174,0.03200001,21248.0,21247.0,1.34458728]
[1674014936417,0.03400001,21248.0,21247.0,1.41658728]
[1674014937206,0.03400001,21248.0,21247.0,1.34118728]
[1674014939064,0.03400001,21248.0,21247.0,0.393921]
[1674014939584,0.03400001,21248.0,21247.0,0.072]
[1674014939887,0.94981473,21248.0,21247.0,0.072]
[1674014940437,0.94981473,21248.0,21244.0,0.08173083]
[1674014940438,1.41644673,21248.0,21244.0,0.08173083]
[1674014940967,1.44344673,21248.0,21247.0,0.005]
[1674014941250,1.71644673,21248.0,21244.0,0.08173083]
[1674014941523,1.41644673,21248.0,21244.0,0.08173083]
[1674014941777,1.44344673,21248.0,21244.0,0.08773083]
[1674014942032,0.05700001,21248.0,21245.0,0.51264695]
[1674014942299,0.05700001,21248.0,21246.0,0.55035584]
[1674014942571,0.05700001,21248.0,21247.0,0.321921]
[1674014942845,0.03000001,21248.0,21247.0,0.321921]
[1674014943121,0.03000001,21248.0,21244.0,0.94711058]
[1674014943383,0.05700001,21248.0,21247.0,0.005]
[1674014943637,0.05700001,21248.0,21247.0,0.326921]
[1674014943943,0.05700001,21248.0,21245.0,0.0754]
[1674014944210,0.03000001,21248.0,21246.0,0.321921]
[1674014944464,0.03000001,21248.0,21245.0,0.470695]
[1674014944727,0.03000001,21248.0,21246.0,0.321921]
[1674014944987,0.50063301,21248.0,21244.0,0.47641058]
[1674014945256,0.03000001,21248.0,21245.0,0.321921]
[1674014945524,0.05700001,21248.0,21247.0,0.005]
[1674014945774,0.05700001,21248.0,21247.0,0.321921]
[1674014946026,0.08400001,21248.0,21247.0,0.321921]
[1674014946275,0.03000001,21248.0,21247.0,0.321921]
[1674014946608,0.05700001,21248.0,21247.0,0.321921]
[1674014946784,1.31259589,21250.0,21247.0,0.321921]
[1674014947027,0.027,21248.0,21247.0,0.002]
[1674014947283,0.027,21248.0,21247.0,0.323921]
[1674014951205,0.027,21248.0,21247.0,0.794575]
[1674014951966,0.027,21248.0,21247.0,1.265229]
[1674014952220,0.027,21248.0,21247.0,0.794575]
[1674014954779,0.027,21248.0,21247.0,1.265229]
[1674014957078,0.027,21248.0,21247.0,0.794575]
[1674014957868,0.027,21248.0,21247.0,0.323921]
[1674014958372,0.027,21248.0,21247.0,0.794575]
[1674014960893,0.027,21248.0,21247.0,0.323921]
[1674014963209,0.027,21248.0,21247.0,0.794575]
[1674014964979,0.02688597,21248.0,21247.0,1.265229]
[1674014971513,0.02688597,21248.0,21247.0,1.340129]
[1674014971771,0.02688597,21248.0,21247.0,1.4526879]
[1674014972563,1e-08,21248.0,21247.0,1.4526879]
[1674014973872,1e-08,21248.0,21247.0,1.340129]
[1674014974127,1e-08,21248.0,21247.0,1.4526879]
[1674014974386,1e-08,21248.0,21247.0,1.340129]
[1674014974696,1e-08,21248.0,21247.0,1.4526879]
[1674014976475,1e-08,21248.0,21247.0,1.62152625]
[1674014976991,1e-08,21248.0,21247.0,3.92976644]
[1674014977298,1e-08,21248.0,21247.0,3.93002831]
[1674014977514,1e-08,21248.0,21247.0,3.76092809]
[1674014977775,1e-08,21248.0,21247.0,4.04232534]
[1674014978033,0.00227747,21252.0,21247.0,4.04032534]
[1674014978304,0.00227747,21252.0,21250.0,0.0749]
[1674014978605,0.00227747,21252.0,21251.0,1.809019]
[1674014979074,0.00227747,21252.0,21251.0,1.733619]
[1674014979589,0.00227747,21252.0,21251.0,1.263053]
[1674014979816,0.00227747,21252.0,21251.0,1.356053]
[1674014981360,0.00227747,21252.0,21251.0,1.351053]
[1674014981584,0.00227747,21252.0,21251.0,1.258053]
[1674014981835,0.00227747,21252.0,21251.0,1.344053]
[1674014990959,0.00227747,21252.0,21251.0,1.494053]
[1674014991253,0.00227747,21252.0,21251.0,1.9111956]
[1674014992767,0.00227747,21252.0,21251.0,1.8362956]
[1674014993027,0.00227747,21252.0,21251.0,1.9469956]
[1674014993785,0.00227747,21252.0,21251.0,1.94699617]